Cogmind - Beta 15 @@@ ROGUE MODE // 2025.05.11 @ 17:58:52 Player: Lord Draconis Result: Destroyed by YI-UF0 with YI-UF0's Doublenader Performance ------------- Evolutions (0) 0 Regions Visited (2) 400 Robots Destroyed (35) 175 Value Destroyed (653) 653 Prototype IDs (0) 0 Alien Tech Used (0) 0 Bonus (-87) -87 TOTAL SCORE: 1141 Bonus ------- Friendly Fire -87 Cogmind --------- Core Integrity 0/250 Matter 272/300 Energy 250/250 System Corruption 0% Temperature Cool (0) Movement Core (1550) Ox30 Location -10/Mines Parts ------- > --- POWER (1) -------- Ion Engine > --- PROPULSION (2) --- Wheel > --- UTILITY (2) ------ Huge Storage Unit Seismic Detector > --- WEAPON (2) ------- Assault Rifle Light Cannon > --- INVENTORY (25) --- Ion Engine Light Ion Engine Light Treads Light Treads Light Treads Aluminum Leg Aluminum Leg Heat Sink Heat Sink Heat Sink Heat Sink Improved Heat Sink Improved Heat Sink Huge Storage Unit High-capacity Matter Pod (200) Structural Scanner Visual Processing Unit Terrain Scanner Terrain Scan Processor Targeting Computer Targeting Computer Small Laser Particle Gun Assault Rifle Grenade Launcher Peak State ------------ > --- POWER ------------ Light Nuclear Core > --- PROPULSION ------- Light Treads Wheel > --- UTILITY ---------- Huge Storage Unit Seismic Detector > --- WEAPON ----------- Assault Rifle Assault Rifle > --- INVENTORY -------- Light Ion Engine Light Ion Engine Light Ion Engine Light Treads Light Treads Light Treads Aluminum Leg Aluminum Leg Heat Sink Heat Sink Heat Sink Heat Sink Improved Heat Sink Improved Heat Sink Huge Storage Unit High-capacity Matter Pod Structural Scanner Visual Processing Unit Terrain Scanner Terrain Scan Processor Targeting Computer Small Laser Small Laser Small Laser Assault Rifle [Rating: 12] Favorites ----------- Power Light Ion Engine Engine Light Ion Engine Power Core Light Nuclear Core Propulsion Light Treads Treads Light Treads Leg Aluminum Leg Wheel Wheel Utility Seismic Detector Device Seismic Detector Storage Huge Storage Unit Weapon Small Laser Energy Gun Small Laser Ballistic Gun Assault Rifle Ballistic Cannon Light Cannon Special Weapon Welding Torch Build | -11 -10 -10 ------- Run | Yrd Mat Min Slots Evolved . | . . . Power . | . . . Propulsion . | . . . Utility . | . . . Weapon . | . . . Parts Attached 24 | 7 12 5 Power 5 | 1 2 2 Engine 4 | 1 1 2 Core 1 | . 1 . Reactor . | . . . Propulsion 8 | 2 4 2 Treads 4 | 2 2 . Leg 1 | . . 1 Wheel 3 | . 2 1 Hover . | . . . Flight . | . . . Utility 4 | 2 2 . Device 1 | 1 . . Storage 3 | 1 2 . Processor . | . . . Hackware . | . . . Protection . | . . . Artifact . | . . . Weapon 7 | 2 4 1 Energy Gun 2 | 2 . . Energy Cannon . | . . . Ballistic Gun 3 | . 3 . Ballistic Cannon 1 | . . 1 Launcher . | . . . Special Weapon 1 | . 1 . Impact Weapon . | . . . Slashing Weapon . | . . . Piercing Weapon . | . . . Special Melee Weapon . | . . . Unidentified Prototypes . | . . . Parts Lost 4 | . 1 3 Power 1 | . . 1 Propulsion 3 | . 1 2 Utility . | . . . Weapon . | . . . Highest Loss Streak 1 | . 1 1 To Critical Strikes . | . . . Average Backups 17 | 2 15 24 Power 1 | . 1 2 Propulsion 4 | 2 5 5 Utility 8 | . 6 13 Weapon 2 | . 2 3 Tool/Special . | . . . Unused Backups 19 | . 1 18 Power 1 | . . 1 Propulsion 2 | . . 2 Utility 14 | . 1 13 Weapon 2 | . . 2 Tool/Special . | . . . Average Slot Usage (%) 99 | . 99 99 Engine 10 | . 10 11 Core 3 | . 3 2 Treads 17 | . 18 13 Wheel 10 | . 9 14 Device 14 | . 14 14 Storage 14 | . 14 14 Energy Gun 14 | . 19 . Ballistic Gun 10 | . 8 18 Ballistic Cannon 2 | . . 9 Peak Build Rating 12 | 7 11 12 Average Rating 9 | 5 8 10 On Entrance 6 | . 7 11 Naked Turns . | . . . Heaviest Build 91 | 11 90 91 Greatest Support 40 | 40 40 10 Greatest Overweight (x) 9 | 2 8 9 Average Overweight (x) 5 | . 5 8 Largest Inventory Capacity 25 | 8 25 25 Average Capacity 21 | 7 21 25 Most Carried 25 | 4 24 25 Average Carried 17 | 2 15 24 Final Capacity 25 | 8 25 25 Final Carried 25 | 4 24 25 Class Distribution -------------------- 100% | Mutant Dominant Class ---------------- Mutant | -10/Materials Mutant | -10/Mines Resources | -11 -10 -10 ----------- Run | Yrd Mat Min Matter Collected 852 | 189 437 226 Remotely . | . . . Salvage Created 1046 | 80 540 426 Parts 58 | 4 32 22 Haulers Intercepted 2 | . 2 . Recyclers Shooed 2 | . 1 1 Parts Field Recycled . | . . . Retrieved Matter . | . . . Parts Self-Destructed . | . . . Prevented . | . . . Kills | -11 -10 -10 ------- Run | Yrd Mat Min Combat Hostiles Destroyed 24 | . 16 8 Guns 24 | . 16 8 Classes Destroyed 8 | 2 6 . Worker 5 | . 1 4 Tunneler 1 | 1 . . Hauler 2 | . 2 . Recycler 1 | 1 . . Watcher 2 | . 2 . Swarmer 12 | . 12 . Grunt 11 | . 3 8 Subdweller 1 | . 1 . Best Kill Streak 7 | 2 7 4 Combat Bots Only 6 | . 6 4 Max Kills in Single Turn 2 | 1 2 2 Gunslinging 1 | . 1 . Exploded . | . . . Melee . | . . . Uniques/NPCs Destroyed . | . . . Combat | -11 -10 -10 -------- Run | Yrd Mat Min Hostile Shots Fired 126 | . 64 62 Missed 34 | . 15 19 Hits 92 | . 49 43 Projectile 92 | . 49 43 AOE 8 | . . 8 Critical Strikes 3 | . 1 2 Damage Taken 1252 | . 495 757 Core 270 | . 63 207 Absorbed by Shields . | . . . Regen/Repaired (Parts) 76 | . 76 . Core Remaining (%) 100 | 100 . . Volleys Fired 118 | 9 64 45 Largest 2 | 2 2 2 Hottest 80 | 80 80 50 Shots Fired 209 | 18 125 66 Gun 193 | 18 122 53 Cannon 13 | . . 13 Launcher . | . . . Special 3 | . 3 . Kinetic 78 | . 12 66 Thermal 131 | 18 113 . Explosive . | . . . Electromagnetic . | . . . Robot Hit Streak 16 | 3 12 16 Robot Miss Streak 5 | 1 5 3 Penetration Max . | . . . Secondary Targets 1 | . 1 . Max Gunslinging Chain 1 | . 1 . Shots Hit Robots 132 | 11 72 49 Core Hits 55 | 3 29 23 Critical Kills . | . . . Critical Parts Destroyed . | . . . Critical Strikes 1 | . . 1 Blast 1 | . . 1 Melee Attacks . | . . . Impact . | . . . Slashing . | . . . Piercing . | . . . Sneak Attacks . | . . . Combat Hostiles . | . . . Follow-up Attacks . | . . . Damage Inflicted 1694 | 126 872 696 Guns 1511 | 126 852 533 Cannons 137 | . . 137 Explosions . | . . . Melee . | . . . Ramming 46 | . 20 26 Kinetic 765 | . 95 670 Thermal 883 | 126 757 . Explosive . | . . . Electromagnetic . | . . . Impact . | . . . Slashing . | . . . Piercing . | . . . Highest Corruption . | . . . Average Corruption . | . . . Corruption Purged . | . . . Corruption Blocked . | . . . Overload Shots . | . . . Overflow Damage 1 | . . 1 Projectiles . | . . . Explosions . | . . . Melee 1 | . . 1 Knockbacks 3 | . . 3 Impact 1 | . . 1 Kinetic 2 | . . 2 Secondary . | . . . Self-Inflicted Damage 23 | . 10 13 Shots . | . . . Rammed 2 | . 1 1 Targets Rammed 2 | . 1 1 Kicked . | . . . Crushed . | . . . Highest Temperature 334 | 108 334 22 Average Temperature 78 | 42 94 7 Received Heat Transfer 471 | . 171 300 Effects 1 | . 1 . Energy Bleed 1 | . 1 . Siege Activations . | . . . Martial Activations . | . . . Shielding Activations . | . . . Robots Disrupted . | . . . Combat Hostiles . | . . . Robots Corrupted 1 | . . 1 Combat Hostiles . | . . . Parts Fried 1 | . . 1 Impact Corruptions 1 | . . 1 Robots Melted . | . . . Combat Hostiles . | . . . Parts Melted 4 | . 4 . Heat Transferred 1975 | 275 1700 . Parts Sabotaged . | . . . Parts Stolen . | . . . Parts Stripped . | . . . Power Chain Reactions . | . . . Alert | -11 -10 -10 ------- Run | Yrd Mat Min Maximum Alert Level 1 | . 1 . Low Security (%) 97 | 100 96 100 Level 1 2 | . 3 . Level 2 . | . . . Level 3 . | . . . Level 4 . | . . . Level 5 . | . . . High Security . | . . . Max Security . | . . . Peak Influence 219 | 10 219 80 Initial . | . . . Average 66 | . 83 27 Influence Increases 707 | 10 477 220 Destroy 0b10 Robot/C 460 | . 300 160 Destroy 0b10 Robot/NC 55 | 10 25 20 Destroy Leader 108 | . 68 40 Successful Hack 53 | . 53 . Destroy Structure 1 | . 1 . Lose Combat Pursuer 30 | . 30 . Influence Decreases 707 | 10 474 223 Entered New Map 3 | . . 3 Time Decay 665 | 10 464 191 Lost Part 39 | . 10 29 Squads Dispatched 2 | . 2 . Investigation 2 | . 2 . Extermination . | . . . Reinforcement . | . . . Assault . | . . . Garrison . | . . . Intercept . | . . . Searches Triggered . | . . . Construction Impeded . | . . . Haulers Reinforced . | . . . Active Scanning Responses . | . . . Cargo Convoy Interrupts . | . . . Stealth | -11 -10 -10 --------- Run | Yrd Mat Min Distress Signals 3 | . 3 . Communications Jammed . | . . . Distress Signals . | . . . Times Spotted 33 | . 24 9 Peak Tracking Total 7 | . 7 4 Tactical Retreats 2 | . 2 . Traps | -11 -10 -10 ------- Run | Yrd Mat Min Traps Triggered 1 | . 1 . Indirectly . | . . . Trap Hack Attempts . | . . . Triggered . | . . . Disarmed . | . . . Reprogrammed . | . . . Reused . | . . . Traps Extracted . | . . . Installed . | . . . Triggered . | . . . Machines | -11 -10 -10 ---------- Run | Yrd Mat Min Machines Disabled . | . . . Max in Single Turn . | . . . Machines Repaired . | . . . Machines Dismantled . | . . . Machines Sabotaged . | . . . Overloaded Fab Kills . | . . . Hacking | -11 -10 -10 --------- Run | Yrd Mat Min Machines Accessed 9 | . 9 . Terminals 7 | . 7 . Fabricators . | . . . Repair Stations 1 | . 1 . Recycling Units 1 | . 1 . Scanalyzers . | . . . Garrison Access . | . . . Total Hacks 25 | . 25 . Successful 13 | . 13 . Failed 11 | . 11 . Catastrophic 2 | . 2 . Database Lockouts 1 | . 1 . Manual 16 | . 16 . Terminals 21 | . 21 . Fabricators . | . . . Repair Stations 2 | . 2 . Recycling Units 2 | . 2 . Scanalyzers . | . . . Garrison Access . | . . . Terminal Hacks 7 | . 7 . Part Schematic 1 | . 1 . Branch Access Points 1 | . 1 . Terminal Index 1 | . 1 . Recycling Unit Index 1 | . 1 . Locate Traps 1 | . 1 . Patrol Status 1 | . 1 . Hauler Manifests 1 | . 1 . Fabricator Hacks . | . . . Repair Station Hacks 2 | . 2 . Scan Component 1 | . 1 . Repair 1 | . 1 . Recycling Unit Hacks 1 | . 1 . Retrieve Components 1 | . 1 . Scanalyzer . | . . . Garrison Access Hacks . | . . . Unauthorized Hacks 3 | . 3 . Terminals 2 | . 2 . Botnet 2 | . 2 . Fabricators . | . . . Repair Stations . | . . . Recycling Units 1 | . 1 . Recyclers 1 | . 1 . Scanalyzers . | . . . Garrison Access . | . . . Data Cores Recovered . | . . . Used . | . . . Hacking Detections 6 | . 6 . Full Trace Events 2 | . 2 . Feedback Events . | . . . Feedback Blocked . | . . . Robot Schematics Acquired . | . . . Robots Built . | . . . Authchips . | . . . Time . | . . . Total Robot Build Rating . | . . . Part Schematics Acquired 1 | . 1 . Parts Built . | . . . Authchips . | . . . Time . | . . . Total Part Build Rating . | . . . Parts Repaired 1 | . 1 . Time 26 | . 26 . Parts Recycled . | . . . Recycled Matter . | . . . Retrieved Matter . | . . . Retrieved Components 2 | . 2 . Parts Scanalyzed . | . . . Part Schematics Acquired . | . . . Parts Damaged . | . . . Bothacking | -11 -10 -10 ------------ Run | Yrd Mat Min Used RIF Installer . | . . . Robots Hacked . | . . . Non-combat . | . . . Combat . | . . . Robot Hacks Applied . | . . . Relay Couplers Released . | . . . Fabnet Peak Effective % . | . . . Robots Rewired . | . . . Allies Hacked . | . . . Hacks Repelled . | . . . Allies | -11 -10 -10 -------- Run | Yrd Mat Min Total Allies . | . . . Largest Group . | . . . Highest-Rated Group . | . . . Highest-Rated Ally . | . . . Total Orders . | . . . Ally Attacks . | . . . Total Damage . | . . . Kills . | . . . Allies Corrupted . | . . . Allies Melted . | . . . Intel | -11 -10 -10 ------- Run | Yrd Mat Min Active Infowar (turns) 2250 | 11 1673 566 Seismic 2250 | 11 1673 566 Robot Analysis Total . | . . . Derelict Logs Recovered 1 | . . 1 Drone Launches . | . . . Drone Recoveries . | . . . Exploration | -11 -10 -10 ------------- Run | Yrd Mat Min Turns Passed 2355 | 116 1673 566 Spaces Moved 989 | 50 741 198 Core 6 | 6 . . Treads 287 | 44 243 . Legs . | . . . Wheels 696 | . 498 198 Hover . | . . . Flight . | . . . Fastest Speed 50 | 50 160 200 Average Speed 190 | 150 187 212 Slowest Speed 320 | 160 320 215 Overloaded Moves . | . . . Propulsion Burnouts . | . . . Robots Hopped . | . . . Potential Cave-ins . | . . . Cave-ins Triggered . | . . . Exploration Rate (%) 52 | 4 98 54 Regions Visited 2 Branch Regions 1 Pre-discovered Areas . | . . . Known Exits Taken 1 | . 1 . Unknown Exits Taken 1 | 1 . . Scrap Searched 1 | . . 1 Spaces Dug . | . . . Terrain Destroyed . | . . . Melee . | . . . Projectile . | . . . AOE . | . . . Terrain Rammed . | . . . Walls Destroyed . | . . . Machines Disabled . | . . . Actions | -11 -10 -10 --------- Run | Yrd Mat Min Total 1250 | 69 899 282 Wait 76 | . 57 19 Move 987 | 49 740 198 Hop . | . . . Pick Up 32 | 4 21 7 Fast Attach 7 | 7 . . Attach 4 | . 2 2 Detach . | . . . Swap 14 | . 10 4 Drop 10 | . 4 6 Fire 118 | 9 64 45 Melee . | . . . Ram 2 | . 1 1 Kick . | . . . Crush . | . . . Escape Stasis . | . . . Rewire . | . . . Trap . | . . . Miscellaneous . | . . . Route ------- -11/Scrapyard -10/Materials (discovered 5 exits: [*Mat x3] / *Min / [*Sub]) -10/Mines (discovered 3 exits: [*Mat x2] / [*Sub]) History --------- Turn | Location | Event 7 | -11/Scrapyard | Discovered new exit (range 16) 117 | -11/Scrapyard | Entered Materials 174 | -10/Materials | Central database locked down 302 | -10/Materials | Build established: Mutant 319 | -10/Materials | Discovered new exit (range 7) 506 | -10/Materials | Discovered new exit (range 8) 652 | -10/Materials | Discovered new exit (range 7) 717 | -10/Materials | Derelicts attacked the area 854 | -10/Materials | Repaired Lgt. Treads 1085 | -10/Materials | Discovered new exit (range 10) 1226 | -10/Materials | Identified exit to Mines 1442 | -10/Materials | Discovered new exit (range 11) 1790 | -10/Materials | Entered Mines 1890 | -10/Mines | Core integrity fell below 50% 2008 | -10/Mines | Discovered new exit (range 13) 2053 | -10/Mines | Discovered new exit (range 9) 2335 | -10/Mines | YI-UF0 nonchalantly dropped a Grenade Launcher on the ground 2352 | -10/Mines | Discovered new exit (range 7) 2353 | -10/Mines | Core integrity fell below 20% 2356 | -10/Mines | Destroyed by YI-UF0 with YI-UF0's Doublenader Last Messages --------------- 02238_ Acquired 19 matter. 02275_ T-07 Excavator is excavating. 02299_ Slammed into K-01 Serf. 02299_ Destroyed Med. Matter Pod. 02299_ K-01 Serf system corrupted by crushing effect. 02299_ K-01 Serf knocked back. 02299_ Destabilizing: Core damaged (-10). 02300_ K-01 Serf system terminally corrupted. 02300_ Wheel fried. 02324_ YI-UF0 mumbles something. 02335_ YI-UF0 nonchalantly drops a Grenade Launcher on the ground. 02337_ YI-UF0 mumbles something. 02340_ Dropped Assault Rifle. 02340_ Acquired Grenade Launcher. 02345_ K-01 Serf destroyed. 02350_ YI-UF0: "BOOM TO YOU TOO!" 02351_ The unstable cave ceiling collapses. 02352_ EXIT=FOUND 02354_ Lgt. Treads destroyed. 02354_ YI-UF0 knocked back. Map ----- +----------------------------------------------------+ | ##??## ##???????????????# #????????????? | | ##???## ##????????????????# #????????????? | | #????######????????????????#####????????????? | | #???????# ?????????????????????????????????? | | ##???????# #?????????????????????????????????? | | ##??#####?# #?????????????????????????????????? | | ##### ### #?????????????????????????????????? | | %= ## ##????????????????????????????????? | | =!%% #????????????????????????????????? | | #=## ## ## #????????????????????????????????? | | #=####### ### #????????????????????????????????? | | # #?????###?# ###### #?????????????????????????? | | # ?????????# #?????????????????????????? | | ###?????????# ##### #?????????????????????????? | | ????????????# #????????????????????????????????? | | ????????????# #????????????????????????????????? | | ????????????# #????????????????????????????????? | | ????????????# #????????????????????????????????? | | ????????????# #????????????????????????????????? | | ????????????#%#???????#####????????????????????? | | ????????????# #?????### ????????????????????? | | ????????????# ####??# ####?????????????????? | | ????????????# #??# #?????????????????? | | ????????????#### #?## ######????????????? | | ???????????????# ### % #????????????? | | ???????????????# @ g[ #????????????? | | ???????????????##### # #### #????????????? | | ???????????????????### #?????????????????? | | ????????????????????# ## ????????????????? | | ????????????????????# ###?# < ??????????????? | | ????????????????????# ????? ?????????????? | | ????????????????????#?????? ##????????????? | | ???????????????????????????? #?????????????? | | ???????????????????????????? #?????????????? | | ????????????????????????????## ##?????????????? | | ??????????????????????????????###??????????????? | | ???????????????????????????????????????????????? | | ???????????????????????????????????????????????? | | ???????????????????????????????????????????????? | | ???????????????????????????????????????????????? | | ???????????????????????????????????????????????? | | ???????????????????????????????????????????????? | | ???????????????????????????????????????????????? | | ???????????????????????????????????????????????? | | ???????????????????????????????????????????????? | | ???????????????????????????????????????????????? | | ???????????????????????????????????????????????? | | | | | | | +----------------------------------------------------+ Best States ------------- Heat Dissipation 25 Energy Generation 14 Energy Capacity 250 Matter Stores 300 Matter Capacity 300 Sight Range 16 Terrain Scan Density 10 Evasion (%) 40 Recoil Reduction 2 Item Schematics ----------------- Huge Storage Unit | -10/Materials | Hacked Robot Schematics ------------------ None Fabricated ------------ Nothing Repaired ---------- Lgt. Treads | 45% | -10/Materials Alien Tech Used ----------------- None Achievements -------------- None Challenges ------------ None Game ------ Seed PitchforkBackupRefractor Manual? 0 Play Time 00:14:27 Cumulative 103.8 hours Start 2025.05.11 @ 17:47:03 End 2025.05.11 @ 17:58:52 Sessions 1 Manual Loads 0 Difficulty Rogue Special Mode None Game No. 73 Rogue 73 Adventurer 0 Explorer 0 Win Type - Total 4 Types 4/0/0/0/0/0/0/0/0/0 Lore% 31 Gallery% 41 Achievement% 41 Wizard Run 0 Options --------- Layout 0 ASCII 0 Keyboard 0 Movement Mouse Keybinds 0 Fullscreen 2 Font 18/SmallcapsGlow Map View 76x50 Zoom Use 0% Tactical HUD 1 Map Filters NONE Filters NONE Steam 1 RUN: b957fd51-bfbd-4fad-bcb2-d5fc1320a6cf